fUSD/lending_fUSD_20250623
["ID","MTS","AMOUNT","RATE_DAILY","PERIOD"]
[367238022,1750710662557,-554.75,0.00022551,2]
[367238023,1750710662566,-643.23,0.00022551,2]
[367238024,1750710662575,-631.16,0.00022551,2]
[367238025,1750710662584,-509.46,0.00022551,2]
[367238026,1750710662594,-433.45335095,0.00022551,2]
[367238027,1750710662604,-490.0,0.00022551,2]
[367238028,1750710662616,-490.0,0.00022551,2]
[367238029,1750710662625,-490.0,0.00022551,2]
[367238030,1750710662635,-697.47,0.00022551,2]
[367238031,1750710662645,-490.0,0.00022551,2]
[367238032,1750710662654,-490.0,0.00022551,2]
[367238033,1750710662664,-490.0,0.00022551,2]
[367238034,1750710662674,-490.0,0.00022551,2]
[367238035,1750710662684,-490.0,0.00022551,2]
[367238036,1750710662693,-490.0,0.00022551,2]
[367238037,1750710662703,-221.531784,0.00022551,7]
[367238038,1750710662712,-490.0,0.00022551,2]
[367238039,1750710662721,-221.531776,0.00022551,7]
[367238040,1750710662730,-490.0,0.00022551,2]
[367238041,1750710662739,-490.0,0.00022551,2]
[367238042,1750710662748,-490.0,0.00022551,2]
[367238043,1750710662757,-1014.68,0.00022551,2]
[367238044,1750710662767,-843.4,0.00022551,2]
[367238045,1750710662776,-490.0,0.00022551,2]
[367238046,1750710662785,-490.0,0.00022551,2]
[367238047,1750710662798,-490.0,0.00022551,2]
[367238048,1750710662807,-490.0,0.00022551,2]
[367238049,1750710662817,-490.0,0.00022551,2]
[367238050,1750710662826,-1658.74,0.00022551,2]
[367238051,1750710662836,-724.32,0.00022551,2]
[367238052,1750710662845,-490.0,0.00022551,2]
[367238053,1750710662855,-568.4,0.00022551,2]
[367238054,1750710662864,-690.87,0.00022551,2]
[367238055,1750710662873,-490.0,0.00022551,2]
[367238056,1750710662882,-893.64,0.00022551,2]
[367238057,1750710662891,-490.0,0.00022551,2]
[367238058,1750710662900,-507.95,0.00022551,2]
[367238059,1750710662909,-832.18,0.00022551,2]
[367238060,1750710662918,-490.0,0.00022551,2]
[367238061,1750710662926,-702.71,0.00022551,2]
[367238062,1750710662936,-490.0,0.00022551,2]
[367238063,1750710662945,-890.74,0.00022551,2]
[367238064,1750710662955,-772.84,0.00022551,2]
[367238065,1750710662964,-490.0,0.00022551,2]
[367238066,1750710662973,-490.0,0.00022551,2]
[367238067,1750710662983,-1094.4,0.00022551,2]
[367238068,1750710662993,-2061.61,0.00022551,2]
[367238069,1750710663002,-636.31,0.00022551,2]
[367238070,1750710663011,-20274.24,0.00022551,2]
[367238071,1750710663023,-654.37,0.00022551,2]
[367238072,1750710663033,-1199.61,0.00022551,2]
[367238073,1750710663042,-3329.3,0.00022551,2]
[367238074,1750710663052,-2581.27,0.00022551,2]
[367238075,1750710663062,-977.77,0.00022551,2]
[367238076,1750710663071,-490.0,0.00022551,2]
[367238077,1750710663080,-1888.74,0.00022551,2]
[367238078,1750710663090,-538.49,0.00022551,2]
[367238079,1750710663100,-490.0,0.00022551,2]
[367238080,1750710663109,-2037.25,0.00022551,2]
[367238081,1750710663119,-1200.34,0.00022551,2]
[367238082,1750710663129,-569.81,0.00022551,2]
[367238083,1750710663139,-935.97,0.00022551,2]
[367238084,1750710663149,-561.15,0.00022551,2]
[367238085,1750710663158,-490.0,0.00022551,2]
[367238086,1750710663168,-1087.67,0.00022551,2]
[367238087,1750710663177,-650.26,0.00022551,2]
[367238088,1750710663186,-4332.58,0.00022551,2]
[367238089,1750710663196,-653.45,0.00022551,2]
[367238090,1750710663205,-490.0,0.00022551,2]
[367238091,1750710663214,-909.2,0.00022551,2]
[367238092,1750710663223,-514.71809544,0.00022551,2]
[367238093,1750710663232,-490.0,0.00022551,2]
[367238094,1750710663242,-1695.31,0.00022551,2]
[367238095,1750710663251,-635.59,0.00022551,2]
[367238096,1750710663261,-490.0,0.00022551,2]
[367238097,1750710663275,-414.12,0.00022551,2]
[367238098,1750710663285,-377.9494786,0.00022551,2]
[367238099,1750710663295,-554.61,0.00022551,2]
[367238100,1750710663304,-490.0,0.00022551,2]
[367238101,1750710663314,-490.0,0.00022551,2]
[367238102,1750710663323,-641.74,0.00022551,2]
[367238103,1750710663332,-737.92,0.00022551,2]
[367238104,1750710663342,-5079.5,0.00022551,2]
[367238105,1750710663351,-490.0,0.00022551,2]
[367238106,1750710663360,-7897.14,0.00022551,2]
[367238107,1750710663370,-490.0,0.00022551,2]
[367238108,1750710663379,-490.0,0.00022551,2]
[367238109,1750710663388,-1651.51,0.00022551,2]
[367238110,1750710663397,-490.0,0.00022551,2]
[367238111,1750710663406,-6489.39,0.00022551,2]
[367238112,1750710663415,-490.0,0.00022551,2]
[367238113,1750710663425,-511.96,0.00022551,2]
[367238114,1750710663434,-300.0,0.00022551,2]
[367238115,1750710663443,-2158.68,0.00022551,2]
[367238116,1750710663452,-1190.63,0.00022551,2]
[367238117,1750710663462,-917.92,0.00022551,2]
[367238118,1750710663472,-940.86,0.00022551,2]
[367238119,1750710663482,-3167.61,0.00022551,2]
[367238120,1750710663491,-1445.98,0.00022551,2]
[367238121,1750710663501,-808.84,0.00022551,2]
[367238122,1750710663511,-730.0,0.00022551,2]
[367238123,1750710663524,-490.0,0.00022551,2]
[367238124,1750710663534,-603.51,0.00022551,2]
[367238125,1750710663544,-490.0,0.00022551,2]
[367238126,1750710663554,-490.0,0.00022551,2]
[367238127,1750710663563,-490.0,0.00022551,2]
[367238128,1750710663574,-490.0,0.00022551,2]
[367238129,1750710663583,-11169.83,0.00022551,2]
[367238130,1750710663594,-490.0,0.00022551,2]
[367238131,1750710663604,-490.0,0.00022551,2]
[367238132,1750710663613,-150.0,0.00022562,2]
[367238133,1750710663623,-1063.0,0.00022569,2]
[367238134,1750710663632,-500.0,0.00022573,2]
[367238135,1750710663641,-500.0,0.00022573,2]
[367238136,1750710663651,-502.43976056,0.00022573,2]
[367238137,1750710663660,-500.0,0.00022573,2]
[367238138,1750710663670,-500.0,0.00022573,2]
[367238139,1750710663680,-150.0,0.00022575,2]
[367238140,1750710663689,-150.19194519,0.00022583,2]
[367238141,1750710663699,-304.49277098,0.00022583,2]
[367238142,1750710663708,-63075.74,0.000226,7]
[367238143,1750710663718,-2603.63,0.000226,2]
[367238144,1750710663727,-300.0,0.00022603,2]
[367238145,1750710663736,-150.0,0.00022615,2]
[367238146,1750710663746,-150.19194519,0.0002263,2]
[367238147,1750710663755,-9276.01056342,0.00022635,2]
[367238148,1750710663766,-14999.3633332,0.00022636,2]
[367238149,1750710663778,-177.75262476,0.00022639,2]
[367238150,1750710663788,-150.0,0.0002265,2]
[367238151,1750710663802,-3532.67823545,0.00022659,7]
[367238152,1750710663812,-150.0,0.00022659,2]
[367238153,1750710663822,-150.19194519,0.00022678,2]
[367238154,1750710663832,-150.0,0.00022679,2]
[367238155,1750710663842,-150.0,0.00022681,2]
[367238156,1750710663851,-208.0,0.00022686,2]
[367238157,1750710663861,-200.0,0.00022693,2]
[367238158,1750710663872,-2000.0,0.00022694,2]
[367238159,1750710663881,-200.0,0.00022694,2]
[367238160,1750710663890,-200.0,0.00022694,2]
[367238161,1750710663900,-200.0,0.00022696,2]
[367238162,1750710663909,-200.0,0.00022696,2]
[367238163,1750710663919,-150.0,0.0002271,2]
[367238164,1750710663929,-150.0,0.00022712,2]
[367238165,1750710663938,-150.0,0.00022712,2]
[367238166,1750710663947,-731.45936786,0.00022717,2]
[367238167,1750710663956,-150.0,0.00022718,2]
[367238168,1750710663965,-150.0,0.0002272,2]
[367238169,1750710663974,-150.19194519,0.00022725,2]
[367238170,1750710663984,-309.69121038,0.00022727,2]
[367238171,1750710663994,-150.0,0.00022728,2]
[367238172,1750710664003,-203.0,0.00022731,7]
[367238173,1750710664012,-150.0,0.00022734,2]
[367238174,1750710664023,-731.45936786,0.00022735,2]
[367238175,1750710664034,-150.0,0.00022735,2]
[367238176,1750710664044,-490.0,0.00022739,2]
[367238177,1750710664054,-490.0,0.00022739,2]
[367238178,1750710664063,-627.13,0.00022739,2]
[367238179,1750710664072,-490.0,0.00022739,2]
[367238180,1750710664082,-490.0,0.00022739,2]
[367238181,1750710664092,-490.0,0.00022739,2]
[367238182,1750710664101,-490.0,0.00022739,2]
[367238183,1750710664110,-490.0,0.00022739,2]
[367238184,1750710664120,-532.08,0.00022739,2]
[367238185,1750710664129,-490.0,0.00022739,2]
[367238186,1750710664138,-490.0,0.00022739,2]
[367238187,1750710664148,-700.46,0.00022739,2]
[367238188,1750710664160,-791.24262585,0.00022755,2]
[367238189,1750710664169,-208.0,0.00022755,2]
[367238190,1750710664179,-150.0,0.00022756,2]
[367238191,1750710664188,-150.0,0.00022757,2]
[367238192,1750710664198,-4893.74716199,0.00022761,2]
[367238193,1750710664207,-170.309933,0.00022761,7]
[367238194,1750710664216,-170.309933,0.00022761,7]
[367238195,1750710664225,-150.0,0.00022762,2]
[367238196,1750710664235,-150.0,0.00022762,2]
[367238197,1750710664245,-731.45936786,0.00022762,2]
[367238198,1750710664254,-791.24262585,0.00022766,2]
[367238199,1750710664264,-300.0,0.00022767,2]
[367238200,1750710664277,-150.0,0.00022768,2]
[367238201,1750710664286,-208.0,0.00022769,2]
[367238202,1750710664296,-150.0,0.00022777,2]
[367238203,1750710664306,-150.0,0.00022785,2]
[367238204,1750710664316,-9276.01056342,0.00022787,2]
[367238205,1750710664326,-154.0004784,0.00022788,2]
[367238206,1750710664335,-151.0,0.00022788,7]
[367238207,1750710664346,-14999.3633332,0.00022788,2]
[367238208,1750710664355,-228.72342656,0.00022792,2]
[367238209,1750710664364,-300.0,0.00022795,2]
[367238210,1750710664374,-666.0,0.00022795,2]
[367238211,1750710664383,-490.0,0.00022796,2]
[367238212,1750710664392,-151.0,0.00022796,7]
[367238213,1750710664402,-199.449904,0.00022796,7]
[367238214,1750710664411,-490.0,0.00022796,2]
[367238215,1750710664421,-151.0,0.00022796,7]
[367238216,1750710664430,-193.811376,0.00022796,7]
[367238217,1750710664441,-490.0,0.00022796,2]
[367238218,1750710664451,-490.0,0.00022796,2]
[367238219,1750710664460,-490.0,0.00022796,2]
[367238220,1750710664469,-151.0,0.00022796,7]
[367238221,1750710664478,-490.0,0.00022796,2]
[367238222,1750710664486,-490.0,0.00022796,2]
[367238223,1750710664495,-490.0,0.00022796,2]
[367238224,1750710664505,-490.0,0.00022796,2]
[367238225,1750710664514,-741.28,0.00022796,2]
[367238226,1750710664527,-1269.87,0.00022796,2]
[367238227,1750710664537,-490.0,0.00022796,2]
[367238228,1750710664547,-490.0,0.00022796,2]
[367238229,1750710664556,-1012.72,0.00022796,2]
[367238230,1750710664566,-795.49,0.00022796,2]
[367238231,1750710664575,-896.51,0.00022796,2]
[367238232,1750710664584,-930.31,0.00022796,2]
[367238233,1750710664594,-601.13,0.00022796,2]
[367238234,1750710664603,-490.0,0.00022796,2]
[367238235,1750710664612,-490.0,0.00022796,2]
[367238236,1750710664621,-490.0,0.00022796,2]
[367238237,1750710664631,-525.15,0.00022796,2]
[367238238,1750710664640,-490.0,0.00022796,2]
[367238239,1750710664650,-1089.28,0.00022796,2]
[367238240,1750710664659,-490.0,0.00022796,2]
[367238241,1750710664669,-626.68,0.00022796,2]
[367238242,1750710664678,-490.0,0.00022796,2]
[367238243,1750710664688,-490.0,0.00022796,2]
[367238244,1750710664697,-608.4,0.00022796,2]
[367238245,1750710664707,-1008.95,0.00022796,2]
[367238246,1750710664716,-490.72,0.00022796,2]
[367238247,1750710664725,-490.0,0.00022796,2]
[367238248,1750710664735,-624.59,0.00022796,2]
[367238249,1750710664744,-900.56,0.00022796,2]
[367238250,1750710664754,-1031.49,0.00022796,2]
[367238251,1750710664763,-490.0,0.00022796,2]
[367238252,1750710664774,-528.27,0.00022796,2]
[367238253,1750710664783,-665.24,0.00022796,2]
[367238254,1750710664794,-711.68,0.00022796,2]
[367238255,1750710664809,-578.52,0.00022796,2]
[367238256,1750710664818,-814.58,0.00022796,2]
[367238257,1750710664827,-559.95,0.00022796,2]
[367238258,1750710664837,-650.52,0.00022796,2]
[367238259,1750710664845,-490.0,0.00022796,2]
[367238260,1750710664854,-578.68,0.00022796,2]
[367238261,1750710664863,-515.84,0.00022796,2]
[367238262,1750710664872,-986.04,0.00022796,2]
[367238263,1750710664881,-847.2,0.00022796,2]
[367238264,1750710664890,-490.0,0.00022796,2]
[367238265,1750710664900,-1020.42,0.00022796,2]
[367238266,1750710664909,-490.0,0.00022796,2]
[367238267,1750710664920,-507.22,0.00022796,2]
[367238268,1750710664930,-651.95,0.00022796,2]
[367238269,1750710664939,-731.82,0.00022796,2]
[367238270,1750710664949,-801.07,0.00022796,2]
[367238271,1750710664958,-595.84,0.00022796,2]
[367238272,1750710664967,-490.0,0.00022796,2]
[367238273,1750710664977,-504.65,0.00022796,2]
[367238274,1750710664987,-490.0,0.00022796,2]
[367238275,1750710664997,-633.57,0.00022796,2]
[367238276,1750710665006,-300.0,0.00022796,2]
[367238277,1750710665016,-605.64,0.00022796,2]
[367238278,1750710665028,-500.0,0.00022796,2]
[367238279,1750710665038,-500.0,0.00022796,2]
[367238280,1750710665047,-835.16,0.00022796,2]
[367238281,1750710665057,-490.0,0.00022796,2]
[367238282,1750710665067,-570.39,0.00022796,2]
[367238283,1750710665076,-490.0,0.00022796,2]
[367238284,1750710665086,-1265.54,0.00022796,2]
[367238285,1750710665096,-490.0,0.00022796,2]
[367238286,1750710665105,-490.0,0.00022796,2]
[367238287,1750710665115,-151.0,0.00022796,7]
[367238288,1750710665124,-490.0,0.00022796,2]
[367238289,1750710665134,-930.73,0.00022796,2]
[367238290,1750710665144,-490.0,0.00022796,2]
[367238291,1750710665153,-490.0,0.00022796,2]
[367238292,1750710665164,-989.33,0.00022796,2]
[367238293,1750710665173,-490.0,0.00022796,2]
[367238294,1750710665183,-1138.03,0.00022796,2]
[367238295,1750710665192,-759.58,0.00022796,2]
[367238296,1750710665203,-825.62,0.00022796,2]
[367238297,1750710665212,-1066.51,0.00022796,2]
[367238298,1750710665222,-637.75,0.00022796,2]
[367238299,1750710665233,-786.44,0.00022796,2]
[367238300,1750710665242,-490.0,0.00022796,2]
[367238301,1750710665251,-504.59,0.00022796,2]
[367238302,1750710665261,-490.0,0.00022796,2]
[367238303,1750710665273,-1049.88,0.00022796,2]
[367238304,1750710665282,-490.0,0.00022796,2]
[367238305,1750710665292,-490.0,0.00022796,2]
[367238306,1750710665301,-490.0,0.00022796,2]
[367238307,1750710665311,-877.74,0.00022796,2]
[367238308,1750710665323,-490.0,0.00022796,2]
[367238309,1750710665332,-490.0,0.00022796,2]
[367238310,1750710665342,-490.0,0.00022796,2]
[367238311,1750710665352,-490.0,0.00022796,2]
[367238312,1750710665361,-1242.46,0.00022796,2]
[367238313,1750710665371,-715.95,0.00022796,2]
[367238314,1750710665381,-637.93,0.00022796,2]
[367238315,1750710665391,-632.88,0.00022796,2]
[367238316,1750710665401,-490.0,0.00022796,2]
[367238317,1750710665411,-490.0,0.00022796,2]
[367238318,1750710665421,-702.81,0.00022796,2]
[367238319,1750710665430,-887.2,0.00022796,2]
[367238320,1750710665441,-490.0,0.00022796,2]
[367238321,1750710665451,-504.25,0.00022796,2]
[367238322,1750710665460,-779.19,0.00022796,2]
[367238323,1750710665470,-300.0,0.00022796,2]
[367238324,1750710665479,-562.12,0.00022796,2]
[367238325,1750710665489,-850.93,0.00022796,2]
[367238326,1750710665499,-490.0,0.00022796,2]
[367238327,1750710665508,-490.0,0.00022796,2]
[367238328,1750710665520,-490.0,0.00022796,2]
[367238329,1750710665529,-630.3,0.00022796,2]
[367238330,1750710665539,-830.9,0.00022796,2]
[367238331,1750710665549,-522.89,0.00022796,2]
[367238332,1750710665559,-490.0,0.00022796,2]
[367238333,1750710665568,-490.0,0.00022796,2]
[367238334,1750710665578,-490.0,0.00022796,2]
[367238335,1750710665588,-744.71,0.00022796,2]
[367238336,1750710665598,-794.71,0.00022796,2]
[367238337,1750710665608,-490.0,0.00022796,2]
[367238338,1750710665618,-490.0,0.00022796,2]
[367238339,1750710665628,-490.0,0.00022796,2]
[367238340,1750710665637,-633.46,0.00022796,2]
[367238341,1750710665648,-490.0,0.00022796,2]
[367238342,1750710665658,-490.0,0.00022796,2]
[367238343,1750710665668,-516.44749284,0.00022796,2]
[367238344,1750710665677,-507.97,0.00022796,2]
[367238345,1750710665687,-1125.04,0.00022796,2]
[367238346,1750710665697,-856.41,0.00022796,2]
[367238347,1750710665706,-772.6,0.00022796,2]
[367238348,1750710665716,-758.08,0.00022796,2]
[367238349,1750710665726,-1061.48,0.00022796,2]
[367238350,1750710665736,-1265.66,0.00022796,2]
[367238351,1750710665746,-1555.01,0.00022796,2]
[367238352,1750710665755,-1009.65,0.00022796,2]
[367238353,1750710665765,-490.0,0.00022796,2]
[367238354,1750710665778,-757.09,0.00022796,2]
[367238355,1750710665788,-1422.93,0.00022796,2]
[367238356,1750710665801,-1780.16,0.00022796,2]
[367238357,1750710665811,-216.873303,0.00022796,2]
[367238358,1750710665820,-1890.11,0.00022796,2]
[367238359,1750710665830,-661.49,0.00022796,2]
[367238360,1750710665840,-849.95,0.00022796,2]
[367238361,1750710665850,-592.52,0.00022796,2]
[367238362,1750710665859,-814.53,0.00022796,2]
[367238363,1750710665870,-1352.1,0.00022796,2]
[367238364,1750710665880,-490.0,0.00022796,2]
[367238365,1750710665890,-2752.0,0.00022796,2]
[367238366,1750710665899,-712.57,0.00022796,2]
[367238367,1750710665909,-738.23,0.00022796,2]
[367238368,1750710665919,-938.45,0.00022796,2]
[367238369,1750710665928,-1007.67,0.00022796,2]
[367238370,1750710665938,-636.79,0.00022796,2]
[367238371,1750710665948,-490.0,0.00022796,2]
[367238372,1750710665958,-1895.55,0.00022796,2]
[367238373,1750710665968,-848.463168,0.00022796,2]
[367238374,1750710665977,-7404.59,0.00022796,2]
[367238375,1750710665987,-490.0,0.00022796,2]
[367238376,1750710665997,-798.84,0.00022796,2]
[367238377,1750710666006,-1763.19,0.00022796,2]
[367238378,1750710666017,-1397.13,0.00022796,2]
[367238379,1750710666027,-932.09,0.00022796,2]
[367238380,1750710666037,-3752.41,0.00022796,2]
[367238381,1750710666046,-1826.04,0.00022796,2]
[367238382,1750710666056,-620.62,0.00022796,2]
[367238383,1750710666065,-392.553218,0.00022796,2]
[367238384,1750710666075,-490.0,0.00022796,2]
[367238385,1750710666084,-1875.03,0.00022796,2]
[367238386,1750710666094,-490.0,0.00022796,2]
[367238387,1750710666103,-1374.54,0.00022796,2]
[367238388,1750710666112,-1742.19,0.00022796,2]
[367238389,1750710666122,-5107.69,0.00022796,2]
[367238390,1750710666133,-504.7,0.00022796,2]
[367238391,1750710666143,-1092.86,0.00022796,2]
[367238392,1750710666152,-1141.25,0.00022796,2]
[367238393,1750710666162,-490.0,0.00022796,2]
[367238394,1750710666173,-1043.39,0.00022796,2]
[367238395,1750710666183,-2671.51,0.00022796,2]
[367238396,1750710666192,-490.0,0.00022796,2]
[367238397,1750710666202,-1901.22,0.00022796,2]
[367238398,1750710666211,-1107.35,0.00022796,2]
[367238399,1750710666221,-4404.19,0.00022796,2]
[367238400,1750710666231,-644.84,0.00022796,2]
[367238401,1750710666240,-490.0,0.00022796,2]
[367238402,1750710666250,-839.46,0.00022796,2]
[367238403,1750710666260,-624.6,0.00022796,2]
[367238404,1750710666271,-1203.12,0.00022796,2]
[367238405,1750710666281,-659.64,0.00022796,2]
[367238406,1750710666291,-849.73,0.00022796,2]
[367238407,1750710666300,-3047.13,0.00022796,2]
[367238408,1750710666310,-890.29,0.00022796,2]
[367238409,1750710666320,-6076.55,0.00022796,2]
[367238410,1750710666330,-683.53,0.00022796,2]
[367238411,1750710666340,-1294.57,0.00022796,2]
[367238412,1750710666350,-490.0,0.00022796,2]
[367238413,1750710666360,-2704.32,0.00022796,2]
[367238414,1750710666369,-827.99,0.00022796,2]
[367238415,1750710666382,-606.06,0.00022796,2]
[367238416,1750710666392,-604.87,0.00022796,2]
[367238417,1750710666401,-705.48,0.00022796,2]
[367238418,1750710666411,-490.0,0.00022796,2]
[367238419,1750710666421,-490.0,0.00022796,2]
[367238420,1750710666431,-10982.63,0.00022796,2]
[367238421,1750710666440,-1215.52,0.00022796,2]
[367238422,1750710666451,-490.0,0.00022796,2]
[367238423,1750710666460,-490.0,0.00022796,2]
[367238424,1750710666470,-1100.81,0.00022796,2]
[367238425,1750710666480,-1278.48,0.00022796,2]
[367238426,1750710666490,-813.65,0.00022796,2]
[367238427,1750710666500,-873.74,0.00022796,2]
[367238428,1750710666509,-490.0,0.00022796,2]
[367238429,1750710666521,-780.12,0.00022796,2]
[367238430,1750710666531,-1690.13,0.00022796,2]
[367238431,1750710666540,-1682.76,0.00022796,2]
[367238432,1750710666550,-1160.2,0.00022796,2]
[367238433,1750710666559,-490.0,0.00022796,2]
[367238434,1750710666569,-490.0,0.00022796,2]
[367238435,1750710666579,-490.0,0.00022796,2]
[367238436,1750710666589,-638.4,0.00022796,2]
[367238437,1750710666600,-623.02,0.00022796,2]
[367238438,1750710666610,-685.94,0.00022796,2]
[367238439,1750710666619,-916.88,0.00022796,2]
[367238440,1750710666629,-564.89,0.00022796,2]
[367238441,1750710666905,-5710.14,0.00022796,2]
[367238442,1750710666924,-1468.48,0.00022796,2]
[367238443,1750710666934,-677.08,0.00022796,2]
[367238444,1750710666946,-490.0,0.00022796,2]
[367238445,1750710666956,-490.0,0.00022796,2]
[367238446,1750710666966,-490.0,0.00022796,2]
[367238447,1750710666976,-710.38,0.00022796,2]
[367238448,1750710666986,-791.69,0.00022796,2]
[367238449,1750710666996,-827.73,0.00022796,2]
[367238450,1750710667006,-166.38055117,0.00022796,2]
[367238451,1750710667016,-690.85,0.00022796,2]
[367238452,1750710667029,-3092.46,0.00022796,2]
[367238453,1750710667038,-976.52,0.00022796,2]
[367238454,1750710667048,-652.69,0.00022796,2]
[367238455,1750710667057,-1019.96,0.00022796,2]
[367238456,1750710667067,-490.0,0.00022796,2]
[367238457,1750710667077,-490.0,0.00022796,2]
[367238458,1750710667087,-983.64,0.00022796,2]
[367238459,1750710667097,-581.36,0.00022796,2]
[367238460,1750710667107,-626.95,0.00022796,2]
[367238461,1750710667117,-1245.94,0.00022796,2]
[367238462,1750710667127,-490.0,0.00022796,2]
[367238463,1750710667136,-748.47,0.00022796,2]
[367238464,1750710667146,-3862.15,0.00022796,2]
[367238465,1750710667155,-1017.96,0.00022796,2]
[367238466,1750710667166,-664.266063,0.00022796,7]
[367238467,1750710667176,-737.21,0.00022796,2]
[367238468,1750710667186,-490.0,0.00022796,2]
[367238469,1750710667196,-696.34,0.00022796,2]
[367238470,1750710667206,-664.266067,0.00022796,7]
[367238471,1750710667218,-1363.28,0.00022796,2]
[367238472,1750710667227,-147803.86,0.00022796,2]
[367238473,1750710667236,-1837.34,0.00022796,2]
[367238474,1750710667246,-944.25,0.00022796,2]
[367238475,1750710667255,-623.24,0.00022796,2]
[367238476,1750710667264,-563.53,0.00022796,2]
[367238477,1750710667274,-2312.42,0.00022796,2]
[367238478,1750710667284,-2227.41,0.00022796,2]
[367238479,1750710667293,-490.0,0.00022796,2]
[367238480,1750710667302,-792.73,0.00022796,2]
[367238481,1750710667312,-1790.2,0.00022796,2]
[367238482,1750710667321,-583.47,0.00022796,2]
[367238483,1750710667330,-310.9487946,0.00022796,2]
[367238484,1750710667340,-1619.67,0.00022796,2]
[367238485,1750710667349,-1408.68,0.00022796,2]
[367238486,1750710667358,-809.54,0.00022796,2]
[367238487,1750710667368,-710.19,0.00022796,2]
[367238488,1750710667377,-512.89,0.00022796,2]
[367238489,1750710667386,-1722.12,0.00022796,2]
[367238490,1750710667396,-671.05,0.00022796,2]
[367238491,1750710667405,-1738.16,0.00022796,2]
[367238492,1750710667414,-3651.51,0.00022796,2]
[367238493,1750710667423,-490.0,0.00022796,2]
[367238494,1750710667433,-1510.49,0.00022796,2]
[367238495,1750710667442,-1499.9,0.00022796,2]
[367238496,1750710667452,-1061.63,0.00022796,2]
[367238497,1750710667462,-498.99,0.00022796,2]
[367238498,1750710667471,-490.0,0.00022796,2]
[367238499,1750710667480,-1303.07,0.00022796,2]
[367238500,1750710667490,-490.0,0.00022796,2]
[367238501,1750710667500,-899.37,0.00022796,2]
[367238502,1750710667510,-1086.74,0.00022796,2]
[367238503,1750710667519,-868.91,0.00022796,2]
[367238504,1750710667530,-490.0,0.00022796,2]
[367238505,1750710667540,-490.0,0.00022796,2]
[367238506,1750710667550,-610.71,0.00022796,2]
[367238507,1750710667559,-2640.99,0.00022796,2]
[367238508,1750710667569,-490.0,0.00022796,2]
[367238509,1750710667578,-1071.59,0.00022796,2]
[367238510,1750710667588,-1580.13,0.00022796,2]
[367238511,1750710667598,-1192.36,0.00022796,2]
[367238512,1750710667607,-751.77,0.00022796,2]
[367238513,1750710667617,-734.85,0.00022796,2]
[367238514,1750710667626,-3672.09,0.00022796,2]
[367238515,1750710667636,-1556.84,0.00022796,2]
[367238516,1750710667647,-1653.6,0.00022796,2]
[367238517,1750710667656,-2003.29,0.00022796,2]
[367238518,1750710667666,-1092.9,0.00022796,2]
[367238519,1750710667676,-1185.18,0.00022796,2]
[367238520,1750710667686,-588.2,0.00022796,2]
[367238521,1750710667695,-1546.76,0.00022796,2]